bitfinex/quotes_ETHUSD_20250726
["timestamp","ask_amount","ask_price","bid_price","bid_amount"]
[1753501402429,0.5941,3738.5,3738.4,2.425]
[1753501403528,3.2689696,3738.5,3738.4,2.425]
[1753501404127,0.5941,3738.5,3738.4,2.425]
[1753501405329,3.2689696,3738.5,3738.4,2.425]
[1753501405628,2.6750178,3738.3,3738.1,0.001]
[1753501405826,0.1336,3738.3,3738.2,2.425]
[1753501406427,0.1336,3738.3,3738.1,0.4883]
[1753501406627,0.1336,3738.3,3738.2,2.425]
[1753501406830,0.1336,3738.3,3738.1,0.4883]
[1753501407126,0.6157,3738.3,3738.2,2.425]
[1753501409626,0.6157,3738.3,3738.1,0.001]
[1753501409832,0.6157,3738.3,3738.2,2.425]
[1753501410126,3.29071376,3738.3,3738.1,0.001]
[1753501410330,3.28011376,3738.3,3738.2,2.425]
[1753501411011,3.76221376,3738.3,3738.2,2.425]
[1753501412106,1.0872,3738.3,3738.2,2.425]
[1753501412632,0.6157,3738.3,3738.2,2.425]
[1753501413530,3.2907127,3738.3,3738.2,2.425]
[1753501413735,3.7622127,3738.3,3738.2,2.425]
[1753501413936,1.0872,3738.3,3738.2,2.425]
[1753501414131,0.6157,3738.3,3738.2,2.425]
[1753501414505,2.8086127,3738.3,3738.2,2.425]
[1753501414917,3.2907127,3738.3,3738.2,2.425]
[1753501415439,3.2907127,3738.3,3738.1,0.001]
[1753501415639,3.2907127,3738.3,3738.2,2.425]
[1753501415937,2.67508426,3738.2,3738.1,0.001]
[1753501416132,2.67508426,3738.2,3738.1,2.426]
[1753501416734,3.62868426,3738.2,3738.1,0.001]
[1753501417038,3.62868426,3738.2,3738.1,2.426]
[1753501417441,3.62868426,3738.2,3738.1,0.001]
[1753501417442,6.62868426,3738.2,3738.1,0.001]
[1753501419150,3.62868426,3738.2,3738.1,0.001]
[1753501426639,0.1336,3738.3,3738.1,0.9467]
[1753501426817,0.1336,3738.3,3738.2,0.4873]
[1753501427710,3.0,3738.2,3738.1,0.001]
[1753501428728,3.57168426,3738.2,3738.1,0.001]
[1753501432116,10.31628426,3738.2,3738.1,0.001]
[1753501436887,5.67508426,3738.2,3738.1,0.8975]
[1753501437173,3.0,3738.2,3738.1,0.8975]
[1753501437377,3.0,3738.2,3738.1,1.6488]
[1753501437734,0.1356,3738.3,3738.1,1.6488]
[1753501438082,0.1356,3738.3,3738.2,0.8965]
[1753501443663,0.1356,3738.3,3738.2,0.4596]
[1753501443867,2.8106127,3738.3,3738.1,0.001]
[1753501444236,0.1356,3738.3,3738.1,0.001]
[1753501444567,0.1356,3738.3,3738.2,0.4596]
[1753501444568,5.8106127,3738.3,3738.2,0.4596]
[1753501447966,5.8106127,3738.3,3738.1,0.001]
[1753501447967,2.67508426,3738.2,3738.1,0.001]
[1753501448442,3.57168426,3738.2,3738.1,0.001]
[1753501448858,6.57168426,3738.2,3738.1,0.001]
[1753501449155,5.67508426,3738.2,3738.1,0.4606]
[1753501452371,5.67508426,3738.2,3738.1,0.001]
[1753501452569,6.57168426,3738.2,3738.1,0.001]
[1753501454545,5.67508426,3738.2,3738.1,0.001]
[1753501454873,3.0,3738.2,3738.1,0.001]
[1753501455079,3.0,3738.2,3738.1,1.6863]
[1753501455315,0.1356,3738.3,3738.1,1.6863]
[1753501455579,0.1356,3738.3,3738.2,0.8965]
[1753501457692,0.1356,3738.3,3738.2,0.4596]
[1753501457975,6.27323571,3738.3,3738.1,0.001]
[1753501458146,3.5982,3738.3,3738.1,0.001]
[1753501458748,3.1356,3738.3,3738.1,0.4911]
[1753501458949,0.1356,3738.3,3738.1,0.4911]
[1753501459600,0.1356,3738.3,3738.1,0.001]
[1753501459884,3.28491335,3738.3,3738.1,0.001]
[1753501460190,0.5982,3738.3,3738.1,0.001]
[1753501460394,0.1356,3738.3,3738.1,0.4911]
[1753501460602,3.1356,3738.3,3738.1,0.4911]
[1753501462771,2.81062672,3738.3,3738.1,0.001]
[1753501463100,3.5982,3738.3,3738.1,0.001]
[1753501463464,3.13768426,3738.2,3738.1,0.001]
[1753501463665,3.61198426,3738.2,3738.1,0.001]
[1753501464559,2.67508426,3738.2,3738.1,0.001]
[1753501464783,3.61198426,3738.2,3738.1,0.001]
[1753501465393,7.16198426,3738.2,3738.1,0.001]
[1753501465583,7.98328426,3738.2,3738.1,0.001]
[1753501473860,5.3082,3738.2,3738.1,0.001]
[1753501477204,4.3333,3738.1,3738.0,0.001]
[1753501477387,4.8278,3738.1,3738.0,0.001]
[1753501478985,4.9772935,3738.1,3738.0,0.001]
[1753501480720,4.8278,3738.1,3738.0,0.001]
[1753501485923,7.8278,3738.1,3738.0,0.001]
[1753501488234,4.4669,3738.1,3738.0,0.001]
[1753501488443,6.8909,3738.1,3738.0,0.001]
[1753501488743,5.5576,3738.1,3738.0,0.4565]
[1753501488909,5.5576,3738.1,3738.0,0.9099]
[1753501489115,6.1076,3738.1,3738.0,0.9099]
[1753501490555,6.1076,3738.1,3738.0,0.001]
[1753501497341,7.0412,3738.1,3738.0,0.001]
[1753501497541,6.9034,3738.1,3738.0,0.001]
[1753501497747,3.6836,3738.1,3738.0,0.001]
[1753501497950,6.1076,3738.1,3738.0,0.9099]
[1753501510081,6.1076,3738.1,3738.0,0.4565]
[1753501510247,6.1076,3738.1,3738.0,0.001]
[1753501510645,6.5528,3738.1,3738.0,0.001]
[1753501510877,7.0412,3738.1,3738.0,0.001]
[1753501514293,7.8063,3738.1,3738.0,0.001]
[1753501522298,7.95597628,3738.1,3738.0,0.001]
[1753501523490,7.8063,3738.1,3738.0,0.001]
[1753501523891,7.95597651,3738.1,3738.0,0.001]
[1753501524330,7.8063,3738.1,3738.0,0.001]
[1753501524691,7.95596326,3738.1,3738.0,0.001]
[1753501526026,7.51076326,3738.1,3738.0,0.001]
[1753501526225,7.49966326,3738.1,3738.0,0.001]
[1753501527063,6.1076,3738.1,3738.0,0.001]
[1753501527343,3.83321777,3738.1,3738.0,0.001]
[1753501527559,6.25721777,3738.1,3738.0,0.4959]
[1753501528942,3.55,3738.0,3737.9,0.001]
[1753501529150,4.0273,3738.0,3737.9,0.001]
[1753501529454,3.55,3738.0,3737.9,0.001]
[1753501529649,4.0273,3738.0,3737.9,0.001]
[1753501529950,4.4726,3738.0,3737.9,0.001]
[1753501530753,5.2976,3738.0,3737.9,0.001]
[1753501532437,5.44721308,3738.0,3737.9,0.001]
[1753501532852,5.44721178,3738.0,3737.9,0.001]
[1753501535810,5.44721617,3738.0,3737.9,0.001]
[1753501536652,8.26521617,3738.0,3737.9,0.001]
[1753501536875,5.44721617,3738.0,3737.9,0.001]
[1753501537674,5.44721617,3738.0,3737.5,0.001]
[1753501537675,0.55,3737.8,3737.5,0.001]
[1753501537988,7.68395306,3737.6,3737.5,0.001]
[1753501538332,8.60655306,3737.6,3737.5,0.001]
[1753501538528,8.16125306,3737.6,3737.5,0.001]
[1753501538733,8.60655306,3737.6,3737.5,0.001]
[1753501542280,9.36285306,3737.6,3737.5,0.001]
[1753501544576,39.36285306,3737.6,3737.5,0.001]
[1753501545586,7.68395306,3737.6,3737.5,0.001]
[1753501547155,10.10795306,3737.6,3737.5,0.4507]
[1753501547354,10.10795306,3737.6,3737.5,0.9456]
[1753501548080,10.2574682,3737.6,3737.5,0.9456]
[1753501548271,10.10795306,3737.6,3737.5,0.001]
[1753501548479,10.60395306,3737.6,3737.5,0.001]
[1753501549765,10.75347575,3737.6,3737.5,0.001]
[1753501550999,10.75347833,3737.6,3737.5,0.001]
[1753501552599,10.78090983,3737.6,3737.5,0.001]
[1753501552777,10.75347833,3737.6,3737.5,0.001]
[1753501552978,10.25747833,3737.6,3737.5,0.001]
[1753501553194,10.10795306,3737.6,3737.5,0.4608]
[1753501553694,10.25750046,3737.6,3737.5,0.4608]
[1753501554301,7.83350046,3737.6,3737.5,0.001]
[1753501554501,10.10795306,3737.6,3737.5,0.9328]
[1753501555299,10.10795306,3737.6,3737.5,0.4608]
[1753501557277,10.25751451,3737.6,3737.5,0.4608]
[1753501558074,10.10795306,3737.6,3737.5,0.4608]
[1753501558275,10.25751896,3737.6,3737.5,0.4608]
[1753501558678,10.10795306,3737.6,3737.5,0.4608]
[1753501559307,10.10795306,3737.6,3737.5,0.001]
[1753501560208,10.25755258,3737.6,3737.5,0.001]
[1753501560572,10.10795306,3737.6,3737.5,0.001]
[1753501561098,10.60395306,3737.6,3737.5,0.001]
[1753501561310,10.10795306,3737.6,3737.5,0.001]
[1753501562014,7.68395306,3737.6,3737.5,0.001]
[1753501562192,0.6836,3737.6,3737.5,1.6974]
[1753501562388,0.1336,3737.6,3737.5,1.6974]
[1753501562791,3.6836,3737.6,3737.5,1.6974]
[1753501563001,0.6836,3737.6,3737.5,1.6974]
[1753501563394,0.1336,3737.6,3737.5,1.6974]
[1753501564185,0.6836,3737.6,3737.5,1.6974]
[1753501567722,0.1336,3737.6,3737.5,1.86734]
[1753501569285,0.002,3737.9,3737.5,1.10274]
[1753501569489,0.1336,3737.8,3737.6,1.7631]
[1753501569690,0.1336,3737.8,3737.7,1.024704]
[1753501569886,0.1336,3737.8,3737.7,1.7631]
[1753501573695,0.1356,3737.9,3737.8,0.8313]
[1753501573907,0.1356,3737.9,3737.8,1.7631]
[1753501574102,0.1356,3737.9,3737.8,1.7065]
[1753501574823,0.002,3737.9,3737.8,1.87725]
[1753501583327,0.002,3737.9,3737.8,2.0376037]
[1753501583497,0.002,3737.9,3737.8,2.01085]
[1753501583915,0.002,3737.9,3737.8,2.0376037]
[1753501585422,0.002,3737.9,3737.8,2.01085]
[1753501586115,0.002,3737.9,3737.8,3.50205]
[1753501586318,0.002,3737.9,3737.8,3.94345]
[1753501586956,0.002,3737.9,3737.8,1.52045]
[1753501587335,0.002,3737.9,3737.8,3.50205]
[1753501587664,0.002,3737.9,3737.8,4.39865]
[1753501587865,0.002,3737.9,3737.8,4.4254037]
[1753501589722,0.002,3737.9,3737.8,4.39865]
[1753501591466,0.002,3737.9,3737.8,4.39765]
[1753501591825,0.002,3737.9,3737.8,4.4244037]
[1753501593320,0.002,3737.9,3737.8,4.39765]
[1753501597262,0.002,3737.9,3737.8,4.4244037]
[1753501598267,0.002,3737.9,3737.8,4.39765]
[1753501599572,0.002,3738.2,3737.8,4.39765]
[1753501599872,0.002,3738.2,3738.1,4.78795306]
[1753501600036,0.002,3738.2,3738.1,4.81470461]
[1753501600242,0.002,3738.2,3738.1,5.84490461]
[1753501600466,0.002,3738.2,3738.1,5.81815306]
[1753501601742,0.002,3738.2,3738.1,8.24015306]
[1753501601957,0.002,3738.2,3738.1,9.42531987]
[1753501602475,0.002,3738.2,3738.1,12.42531987]
[1753501604545,0.002,3738.2,3738.1,10.00331987]
[1753501604764,0.002,3738.2,3738.1,12.42531987]
[1753501610384,0.002,3738.2,3738.1,10.00331987]
[1753501610588,0.002,3738.2,3738.1,12.42531987]
[1753501611385,0.002,3738.2,3738.1,10.00331987]
[1753501611572,0.002,3738.2,3738.1,12.42531987]
[1753501617979,0.002,3738.2,3738.1,11.97011987]
[1753501618469,0.002,3738.2,3738.1,5.10636681]
[1753501618673,0.9132,3738.2,3738.1,11.38136681]
[1753501620198,0.4856,3738.2,3738.1,11.38136681]
[1753501620696,0.4856,3738.2,3738.1,8.17176681]
[1753501620898,0.9132,3738.2,3738.1,10.59276681]
[1753501621063,0.9132,3738.2,3738.1,8.17176681]
[1753501621266,0.9132,3738.2,3738.1,10.59376681]
[1753501621586,0.9132,3738.2,3738.1,7.59376681]
[1753501621783,0.9132,3738.2,3738.1,3.9866]
[1753501622095,0.9132,3738.2,3738.1,6.4086]
[1753501623182,0.9132,3738.2,3738.1,2.5556]
[1753501637819,0.4856,3738.2,3738.1,2.5556]
[1753501639317,0.002,3738.2,3738.1,3.50535155]
[1753501639524,0.002,3738.2,3738.1,8.70620977]
[1753501639687,0.002,3738.2,3738.1,8.67945822]
[1753501640892,0.002,3738.2,3738.1,11.67945822]
[1753501645874,0.002,3738.2,3738.1,11.19735822]
[1753501646033,0.002,3738.2,3738.1,10.75645822]
[1753501647268,0.002,3738.2,3738.1,8.33445822]
[1753501647421,0.002,3738.2,3738.1,10.75645822]
[1753501647959,0.459,3738.2,3738.1,10.75645822]
[1753501648363,0.459,3738.2,3738.1,6.75610516]
[1753501650871,0.459,3738.2,3738.1,10.60910516]
[1753501652139,0.002,3738.2,3738.1,10.60910516]
[1753501653071,0.002,3738.2,3738.1,15.05035822]
[1753501654496,0.002,3738.2,3738.1,16.08245822]
[1753501659591,0.002,3738.2,3738.1,20.08245822]
[1753501662061,0.002,3738.6,3738.5,18.793854]
[1753501662265,0.002,3738.8,3738.6,33.7914]
[1753501662877,0.002,3738.8,3738.6,34.7144]
[1753501663083,0.002,3738.8,3738.6,38.7144]
[1753501663995,0.002,3738.8,3738.6,30.33428]
[1753501664292,0.002,3738.8,3738.6,33.03337176]
[1753501665096,0.002,3738.8,3738.6,33.58337176]
[1753501665295,0.002,3738.8,3738.6,41.96349176]
[1753501670400,0.002,3738.8,3738.6,11.96349176]
[1753501670603,0.002,3738.8,3738.6,41.96349176]
[1753501671518,0.002,3738.8,3738.6,37.96349176]
[1753501671814,0.002,3738.8,3738.6,42.16349176]
[1753501674620,0.002,3738.8,3738.6,46.16349176]
[1753501675721,0.002,3738.8,3738.6,46.14539176]
[1753501676810,0.4501,3739.5,3738.9,0.55]
[1753501677001,0.002,3739.5,3739.4,8.34175306]
[1753501677201,0.002,3739.5,3739.4,10.89635306]
[1753501677398,0.002,3739.5,3739.4,19.50019706]
[1753501677725,0.4481,3740.3,3739.4,19.50019706]
[1753501677726,0.4481,3740.3,3739.6,34.3414]
[1753501677921,0.4481,3740.3,3739.6,39.46149176]
[1753501678092,0.4481,3740.3,3739.6,39.59509176]
[1753501678293,0.4481,3740.3,3739.6,40.53029176]
[1753501678905,0.4871,3740.2,3739.6,40.53029176]
[1753501679619,0.4871,3740.2,3739.6,28.24226676]
[1753501679801,0.4871,3740.2,3739.6,27.07099676]
[1753501680002,0.4871,3740.2,3739.6,26.67167376]
[1753501680696,0.4871,3740.2,3739.6,40.53029176]
[1753501680912,0.4871,3740.2,3739.6,37.51760876]
[1753501681131,0.4481,3740.3,3739.6,30.48409776]
[1753501681432,0.4871,3740.2,3739.6,30.48409776]
[1753501681834,0.4871,3740.2,3739.6,34.96460276]
[1753501682032,0.4871,3740.2,3739.6,38.96460276]
[1753501682733,0.4871,3740.2,3739.6,27.81379476]
[1753501683043,0.4481,3740.3,3739.6,24.62439176]
[1753501683332,0.9372,3740.1,3739.6,24.15319176]
[1753501683804,0.4501,3740.1,3739.6,31.20146176]
[1753501684009,0.002,3740.1,3739.6,22.67891776]
[1753501684325,0.002,3740.1,3739.6,23.14291776]
[1753501684638,0.002,3740.1,3740.0,31.3725]
[1753501684841,0.002,3740.1,3740.0,28.27596706]
[1753501685004,0.002,3740.1,3740.0,23.83215206]
[1753501685336,0.7877,3741.2,3740.4,0.55]
[1753501685526,0.7877,3741.2,3740.7,4.00035306]
[1753501685730,0.7877,3741.2,3741.1,0.1336]
[1753501685916,0.7877,3741.2,3741.1,2.5536]
[1753501686231,0.7877,3742.1,3741.1,2.5536]
[1753501686432,0.7877,3742.1,3741.2,0.02672939]
[1753501686625,0.7877,3742.1,3741.8,0.1336]
[1753501686820,0.7877,3742.1,3741.9,2.42]
[1753501687134,0.9352,3742.0,3741.8,0.1336]
[1753501687333,0.7877,3741.9,3741.8,0.1336]
[1753501687539,1.7229,3741.9,3741.8,2.5536]
[1753501687725,1.7229,3741.9,3741.8,0.1336]
[1753501688025,1.7229,3741.9,3741.8,2.5536]
[1753501689008,1.7229,3741.9,3741.8,0.1336]
[1753501689209,1.7229,3741.9,3741.8,2.5536]
[1753501692236,1.89519,3741.9,3741.8,0.1336]
[1753501692430,1.89519,3741.9,3741.8,2.5536]
[1753501692627,1.89519,3741.9,3741.8,0.1336]
[1753501692827,1.89519,3741.9,3741.8,2.42]
[1753501697648,0.7877,3741.9,3741.8,2.42]
[1753501697818,1.7156,3741.9,3741.8,2.42]
[1753501698222,1.7156,3741.9,3741.8,2.4467251]
[1753501698456,0.7877,3741.9,3741.8,2.5803251]
[1753501698630,0.7877,3741.9,3741.8,2.5536]
[1753501698829,0.7604,3742.2,3741.8,2.5536]
[1753501699036,0.7604,3742.2,3741.8,2.42]
[1753501699244,0.7604,3742.2,3742.1,0.1336]
[1753501699423,0.7604,3742.2,3742.1,2.5536]
[1753501699965,1.2405,3742.2,3742.1,2.5536]
[1753501700123,1.6883,3742.2,3742.1,2.5536]
[1753501701444,0.7604,3742.2,3742.1,2.5536]
[1753501703961,0.8258,3742.6,3742.1,2.5536]
[1753501704146,0.8238,3742.6,3742.1,2.5536]
[1753501704467,0.9279,3742.5,3742.4,0.1336]
[1753501704674,0.9279,3742.5,3742.4,2.5536]
[1753501706471,0.8238,3742.6,3742.4,2.5536]
[1753501706882,1.7517,3742.6,3742.4,2.5536]
[1753501708857,0.8238,3742.6,3742.4,2.5536]
[1753501709566,0.8238,3742.6,3742.4,3.0535]
[1753501710338,0.8238,3742.6,3742.4,2.5536]
[1753501710745,0.8258,3742.6,3742.4,0.1336]
[1753501711270,0.4478,3742.5,3742.4,0.1336]
[1753501711470,0.9279,3742.5,3742.4,2.5526]
[1753501711854,0.8258,3742.6,3742.4,2.5526]
[1753501712049,1.7537,3742.6,3742.4,2.5526]
[1753501712266,1.3059,3742.6,3742.5,2.419]
[1753501712856,1.7537,3742.6,3742.5,2.419]
[1753501713254,0.8258,3742.6,3742.4,0.1336]
[1753501713460,0.8258,3742.6,3742.5,2.419]
[1753501713876,0.8258,3742.6,3742.4,0.1336]
[1753501714079,0.8258,3742.6,3742.5,2.419]
[1753501714554,1.7537,3742.6,3742.5,2.419]
[1753501715853,0.8258,3742.6,3742.5,2.419]
[1753501716686,1.7537,3742.6,3742.5,2.419]
[1753501718453,0.8258,3742.6,3742.5,2.419]
[1753501721796,0.8258,3742.6,3742.5,2.9189]
[1753501721999,0.8258,3742.6,3742.5,3.3689]
[1753501722296,0.002,3742.6,3742.5,3.3689]
[1753501722874,0.002,3742.6,3742.5,2.9189]
[1753501723075,0.002,3742.6,3742.5,2.419]
[1753501725900,0.002,3742.6,3742.4,0.1336]
[1753501726104,0.002,3742.6,3742.5,2.419]
[1753501726602,0.002,3742.6,3742.4,0.1336]
[1753501726793,0.002,3742.6,3742.5,2.419]
[1753501727775,1.234,3742.6,3742.5,2.419]
[1753501728091,1.8494,3742.6,3742.5,2.419]
[1753501728497,0.9244,3742.6,3742.5,2.419]
[1753501728805,0.9244,3742.6,3742.1,4.4717]
[1753501729002,0.9244,3742.6,3742.2,2.9081]
[1753501730203,0.1336,3742.3,3741.6,0.1336]
[1753501730405,0.8185,3742.2,3741.7,2.9081]
[1753501730606,0.1336,3742.1,3741.8,0.9316]
[1753501730785,0.8185,3742.2,3741.9,0.1336]
[1753501731102,0.8185,3742.2,3742.0,0.9316]
[1753501731270,0.8185,3742.2,3742.0,0.4891]
[1753501731469,0.8185,3742.2,3741.9,0.1336]
[1753501731680,0.8185,3742.2,3742.0,2.419]
[1753501731681,1.7435,3742.2,3742.0,2.419]
[1753501731906,0.8185,3742.2,3742.0,2.419]
[1753501732406,0.8185,3742.2,3742.1,0.9316]
[1753501732700,0.8185,3742.2,3742.1,0.9326]
[1753501732894,0.8185,3742.2,3742.1,0.4901]
[1753501734105,0.7643,3742.4,3742.1,0.4901]
[1753501734305,0.7643,3742.4,3742.1,0.001]
[1753501734510,0.7643,3742.4,3742.2,0.4891]
[1753501735512,0.002,3742.6,3742.3,0.4891]
[1753501735811,0.002,3742.6,3742.4,0.02672082]
[1753501736211,0.002,3742.6,3742.5,0.9316]
[1753501736777,0.002,3742.6,3742.5,3.3516]
[1753501738694,0.002,3742.6,3742.5,3.4852]
[1753501739016,0.002,3742.6,3742.5,4.33861408]
[1753501743216,0.002,3742.6,3742.5,4.33761408]
[1753501744229,0.002,3742.6,3742.5,4.54295238]
[1753501745098,0.002,3742.6,3742.5,2.12395238]
[1753501745304,0.002,3742.6,3742.5,4.54295238]
[1753501748702,0.002,3742.6,3742.5,2.12395238]
[1753501749032,0.002,3742.6,3742.5,3.27241408]
[1753501749226,0.002,3742.6,3742.5,2.419]
[1753501750138,0.927,3742.6,3742.3,0.1336]
[1753501750338,0.002,3742.6,3742.5,2.42]
[1753501750723,0.002,3742.6,3742.3,0.1336]
[1753501750918,0.925,3742.5,3742.4,2.419]
[1753501754232,0.925,3742.5,3742.4,2.42]
[1753501754613,0.925,3742.5,3742.4,0.001]
[1753501754813,0.925,3742.5,3742.4,2.42]
[1753501756248,0.6174,3742.6,3742.4,0.001]
[1753501756430,0.6174,3742.6,3742.5,2.419]
[1753501756629,1.0606,3742.6,3742.5,2.419]
[1753501758049,0.7565,3742.5,3742.4,0.001]
[1753501758217,1.7077,3742.5,3742.4,2.42]
[1753501758419,0.7565,3742.5,3742.4,2.42]
[1753501760751,1.7077,3742.5,3742.4,2.42]
[1753501761420,1.7077,3742.5,3742.4,2.421]
[1753501762673,1.7077,3742.5,3742.4,0.001]
[1753501762824,0.7565,3742.5,3742.4,0.001]
[1753501763258,0.7565,3742.5,3742.4,2.421]
[1753501764549,0.7565,3742.5,3742.4,0.001]
[1753501764755,1.7077,3742.5,3742.4,2.421]
[1753501769354,1.7077,3742.5,3742.4,0.001]
[1753501769554,1.7077,3742.5,3742.4,2.421]
[1753501769759,0.7565,3742.5,3742.4,2.421]
[1753501771059,1.2468,3742.5,3742.4,2.421]
[1753501771243,1.7077,3742.5,3742.4,2.421]
[1753501771941,1.7077,3742.5,3742.4,0.001]
[1753501772142,1.7077,3742.5,3742.4,2.42]
[1753501772338,8.70805306,3742.5,3742.4,2.42]
[1753501772557,9.25805306,3742.5,3742.4,0.001]
[1753501772857,9.25805306,3742.5,3742.4,2.42]
[1753501776171,9.25805306,3742.5,3742.4,0.001]
[1753501776347,9.25805306,3742.5,3742.4,2.42]
[1753501778475,8.30685306,3742.5,3742.4,2.42]
[1753501778977,3.55,3742.5,3742.4,2.9128]
[1753501779170,3.55,3742.5,3742.4,3.3551]
[1753501779550,3.0,3742.5,3742.4,3.3551]
[1753501779745,0.1356,3742.6,3742.4,3.3551]
[1753501779948,0.1356,3742.6,3742.5,0.9351]
[1753501780461,0.002,3742.6,3742.5,1.6858]
[1753501783817,0.002,3742.6,3742.5,4.1068]
[1753501785602,0.002,3742.6,3742.5,4.1335201]
[1753501785802,0.002,3742.6,3742.5,4.97889311]
[1753501786797,0.002,3742.6,3742.5,4.95217301]
[1753501791203,0.002,3742.6,3742.5,4.97889311]
[1753501792902,0.002,3742.6,3742.5,4.95217301]
[1753501793884,0.002,3742.6,3742.5,4.97889311]
[1753501799811,0.002,3742.6,3742.5,7.97889311]
[1753501800018,0.002,3742.6,3742.5,8.50217301]
[1753501800533,0.002,3742.6,3742.5,8.40217301]
[1753501801008,0.002,3742.6,3742.5,5.98117301]
[1753501801343,0.002,3742.6,3742.5,8.40117301]
[1753501802828,0.002,3742.6,3742.5,5.98117301]
[1753501803030,0.002,3742.6,3742.5,8.40217301]
[1753501805031,0.002,3742.6,3742.5,12.40217301]
[1753501805612,0.002,3742.6,3742.5,16.40252607]
[1753501806633,0.002,3742.6,3742.5,13.98152607]
[1753501806829,0.002,3742.6,3742.5,16.40352607]
[1753501807918,0.002,3742.6,3742.5,7.01807301]
[1753501808119,0.002,3742.6,3742.5,7.51567301]
[1753501808634,0.002,3742.6,3742.5,7.97577301]
[1753501811037,0.002,3742.6,3742.5,7.01807301]
[1753501811539,0.002,3742.6,3742.5,7.51567301]
[1753501812619,0.002,3742.6,3742.5,5.09367301]
[1753501812818,0.002,3742.6,3742.5,7.21825657]
[1753501813017,0.002,3742.6,3742.5,6.46755657]
[1753501813439,0.4526,3742.6,3742.5,6.46755657]
[1753501813838,0.002,3742.6,3742.5,6.46755657]
[1753501815310,0.002,3742.6,3742.5,8.22385657]
[1753501815506,0.002,3742.6,3742.5,8.61321428]
[1753501815837,0.002,3742.6,3742.5,8.77385657]
[1753501817941,0.002,3742.6,3742.5,4.84415657]
[1753501818117,0.002,3742.6,3742.5,6.46855657]
[1753501818532,0.002,3742.6,3742.5,6.94775657]
[1753501819332,0.002,3742.6,3742.5,8.22125657]
[1753501823730,0.002,3742.6,3742.5,4.85065657]
[1753501823932,0.002,3742.6,3742.5,7.27365657]
[1753501824439,0.002,3742.6,3742.5,7.75285657]
[1753501826757,0.002,3742.6,3742.5,8.22125657]
[1753501831075,0.002,3742.6,3742.5,7.75285657]
[1753501831986,0.002,3742.6,3742.5,12.77160963]
[1753501840088,0.002,3742.6,3742.5,12.77260963]
[1753501846491,0.002,3742.6,3742.5,16.97260963]
[1753501847662,0.002,3742.6,3742.5,39.42840963]
[1753501848795,0.002,3742.6,3742.5,46.96733163]
[1753501849294,0.002,3742.6,3742.5,37.58115063]
[1753501849489,0.002,3742.6,3742.5,35.15815063]
[1753501849693,0.002,3742.6,3742.5,38.30895563]
[1753501849995,0.002,3742.6,3742.5,36.46956363]
[1753501850563,0.002,3742.6,3742.5,42.54445463]
[1753501850776,0.002,3742.6,3742.5,41.27210663]
[1753501851481,0.002,3742.6,3742.5,39.91360063]
[1753501851678,0.002,3742.6,3742.5,39.55691763]
[1753501852660,0.002,3742.6,3742.5,20.97060963]
[1753501852860,0.002,3742.6,3742.5,39.86991763]
[1753501853695,0.002,3742.6,3742.5,37.57877763]
[1753501853883,0.002,3742.6,3742.5,37.79877763]
[1753501854086,0.002,3742.6,3742.5,27.81155263]
[1753501854279,0.002,3742.6,3742.5,27.49855263]
[1753501854696,0.002,3742.6,3742.5,20.96960963]
[1753501855002,0.002,3742.6,3742.5,28.21638463]
[1753501855769,0.002,3742.6,3742.5,39.37555263]
[1753501855993,0.002,3742.6,3742.5,36.07855263]
[1753501856207,0.002,3742.6,3742.5,24.63855263]
[1753501856890,0.002,3742.6,3742.5,26.38869263]
[1753501857895,0.002,3742.6,3742.5,21.55348563]
[1753501858274,0.002,3742.6,3742.5,23.97248563]
[1753501858806,0.002,3742.6,3742.5,38.83266463]
[1753501859113,0.002,3742.6,3742.5,37.75506863]
[1753501859481,0.002,3742.6,3742.5,37.43858263]
[1753501859680,0.002,3742.6,3742.5,35.29562063]
[1753501860013,0.002,3742.6,3742.5,16.76860963]
[1753501860320,0.00020926,3742.6,3742.5,46.76860963]
[1753501861630,0.00020926,3742.6,3742.5,45.77907463]
[1753501861824,0.00020926,3742.6,3742.5,39.34911963]
[1753501862025,0.00020926,3742.6,3742.5,34.86474563]
[1753501863092,0.00020926,3742.6,3742.5,46.76860963]
[1753501863588,0.00020926,3742.6,3742.5,45.70628763]
[1753501864131,0.00020926,3742.6,3742.5,46.76860963]
[1753501864327,0.00020926,3742.6,3742.5,47.87882439]
[1753501864790,0.00020926,3742.6,3742.5,43.97289739]
[1753501864990,0.00020926,3742.6,3742.5,35.51389039]
[1753501865216,0.00020926,3742.6,3742.5,31.57942139]
[1753501866616,0.00020926,3742.6,3742.5,24.56491839]
[1753501867216,0.00020926,3742.6,3742.5,35.30867839]
[1753501867821,0.00020926,3742.6,3742.5,28.10867839]
[1753501868028,0.00020926,3742.6,3742.5,25.90867839]
[1753501868736,0.00020926,3742.6,3742.5,26.39837839]
[1753501869098,0.15213125,3742.9,3742.5,17.42092439]
[1753501869296,0.4814,3743.1,3742.8,0.55]
[1753501869497,0.8098,3743.3,3743.0,3.1336]
[1753501869827,0.8098,3743.3,3743.2,0.1336]
[1753501870197,1.2912,3743.3,3743.2,0.1336]
[1753501871335,1.5429,3743.3,3743.2,2.5526]
[1753501873149,1.5429,3743.3,3743.2,0.1336]